bitfinex/quotes_SOLUSD_20251124
["timestamp","ask_amount","ask_price","bid_price","bid_amount"]
[1764021913352,4.69674755,139.42,139.37,78.808864]
[1764021913582,8.80994492,139.43,139.38,16.308864]
[1764021913783,4.69674755,139.41,139.35,3.18]
[1764021914085,3.18,139.41,139.37,4.69674755]
[1764021914458,0.66,139.4,139.36,4.69674755]
[1764021914659,0.66,139.4,139.35,28.29656754]
[1764021914860,0.66,139.4,139.35,32.99331509]
[1764021915386,0.66,139.4,139.35,15.05287735]
[1764021915572,0.66,139.4,139.35,10.3561298]
[1764021915887,7.8336188,139.4,139.35,15.05287735]
[1764021916475,0.66,139.4,139.35,32.99331509]
[1764021916677,0.66,139.4,139.36,4.69674755]
[1764021917177,3.18,139.41,139.36,4.69674755]
[1764021917494,29.40330665,139.43,139.37,4.69674755]
[1764021917701,3.84,139.43,139.38,4.69674755]
[1764021917871,0.66,139.42,139.35,28.29656754]
[1764021918069,0.66,139.42,139.38,4.69674755]
[1764021919181,0.66,139.42,139.38,7.1746305]
[1764021920997,0.66,139.42,139.38,171.5746305]
[1764021921295,3.18,139.44,139.38,194.20795431]
[1764021921473,0.66,139.43,139.38,194.20795431]
[1764021924400,0.68,139.44,139.4,4.69674755]
[1764021924589,0.68,139.43,139.4,164.4]
[1764021925594,0.68,139.45,139.4,164.4]
[1764021925991,5.37674755,139.45,139.4,164.4]
[1764021926473,0.68,139.44,139.41,7.17308657]
[1764021926679,0.68,139.44,139.4,171.57349792]
[1764021929477,7.85163296,139.44,139.4,171.57349792]
[1764021929878,0.68,139.43,139.4,171.57349792]
[1764021931186,7.17102904,139.45,139.4,171.57349792]
[1764021931390,7.85102904,139.45,139.4,189.50750078]
[1764021931591,0.68,139.45,139.4,192.50907845]
[1764021931782,7.85010816,139.47,139.41,3.00157767]
[1764021931985,0.68,139.47,139.42,3.00157767]
[1764021933513,0.68,139.47,139.43,7.17205766]
[1764021933807,0.68,139.47,139.43,25.10220181]
[1764021934712,7.85021608,139.47,139.43,7.17205766]
[1764021935087,0.68,139.47,139.43,7.17205766]
[1764021935391,0.68,139.46,139.43,7.17205766]
[1764021935597,0.68,139.47,139.43,25.10220181]
[1764021936815,0.68,139.47,139.43,7.17205766]
[1764021938013,0.68,139.48,139.43,7.17205766]
[1764021938310,0.68,139.47,139.43,7.17205766]
[1764021938688,0.68,139.47,139.43,171.57205766]
[1764021939308,0.68,139.47,139.43,189.50220181]
[1764021940402,0.68,139.47,139.43,192.68220181]
[1764021946103,0.68,139.49,139.43,192.68220181]
[1764021946305,0.78,139.5,139.45,3.00157767]
[1764021946506,0.78,139.5,139.45,170.58157767]
[1764021948330,7.94847242,139.5,139.46,7.17051484]
[1764021948723,0.78,139.5,139.46,69.67051484]
[1764021950243,0.1,139.5,139.46,192.49837961]
[1764021950414,0.1,139.5,139.47,3.18]
[1764021950613,0.1,139.5,139.47,167.58]
[1764021952033,0.8,139.5,139.48,7.16948666]
[1764021952209,0.8,139.5,139.48,69.66948666]
[1764021952916,0.1,139.5,139.48,69.66948666]
[1764021955036,0.78,139.5,139.48,69.66948666]
[1764021955229,0.1,139.5,139.48,69.66948666]
[1764021956538,0.1,139.5,139.48,171.56948666]
[1764021960619,0.36734,139.52,139.5,62.4]
[1764021961121,1.04734,139.52,139.5,62.4]
[1764021961644,1.04734,139.52,139.5,69.56807897]
[1764021962548,0.1,139.54,139.53,75.11880892]
[1764021962748,17.004,139.56,139.54,8.80994492]
[1764021962950,17.004,139.56,139.55,22.49044167]
[1764021963336,17.004,139.56,139.55,16.308864]
[1764021963541,17.684,139.56,139.53,16.308864]
[1764021963740,17.684,139.56,139.54,7.16640389]
[1764021963963,17.004,139.56,139.54,7.16640389]
[1764021964265,17.004,139.56,139.54,10.34640389]
[1764021964635,17.004,139.56,139.54,13.34798156]
[1764021964829,17.004,139.56,139.54,26.65526789]
[1764021968668,0.68,139.57,139.56,45.396]
[1764021972238,3.00157767,139.6,139.56,45.396]
[1764021972437,0.68,139.58,139.56,45.396]
[1764021972637,7.16178471,139.63,139.56,158.11295419]
[1764021972845,3.18,139.62,139.57,3.00157767]
[1764021973070,1.93593088,139.64,139.61,3.00157767]
[1764021973240,1.93593088,139.64,139.63,3.00157767]
[1764021973662,1.93593088,139.64,139.63,19.96044167]
[1764021973663,1.25593088,139.64,139.63,19.96044167]
[1764021973844,1.25593088,139.64,139.63,27.12222638]
[1764021974245,17.89111661,139.74,139.63,27.12222638]
[1764021974246,3.74308507,139.78,139.67,16.308864]
[1764021974473,25.04310037,139.76,139.67,16.308864]
[1764021974659,3.00157767,139.74,139.67,6.18157767]
[1764021974966,3.68157767,139.75,139.68,3.00157767]
[1764021975164,0.68,139.74,139.65,31.49517468]
[1764021975347,0.68,139.75,139.68,16.308864]
[1764021975663,0.68,139.77,139.72,3.00157767]
[1764021975864,7.15500498,139.77,139.72,3.00157767]
[1764021976053,0.68,139.76,139.72,3.00157767]
[1764021976562,3.00157767,139.73,139.6,50.0]
[1764021976771,19.488864,139.72,139.61,28.24983739]
[1764021976965,3.00157767,139.67,139.61,3.18]
[1764021977160,9.48994492,139.71,139.61,3.18]
[1764021977466,3.00157767,139.66,139.61,3.18]
[1764021977647,3.00157767,139.64,139.61,3.18]
[1764021977968,10.16299186,139.64,139.58,10.34416664]
[1764021978165,0.68,139.63,139.58,10.34416664]
[1764021978366,0.68,139.63,139.58,3.18]
[1764021978671,0.68,139.63,139.58,26.61599845]
[1764021978966,0.68,139.63,139.58,3.18]
[1764021978967,7.12713445,139.62,139.58,3.18]
[1764021979572,0.68,139.61,139.58,3.18]
[1764021980969,0.68,139.65,139.59,7.12713445]
[1764021982272,14.96824277,139.65,139.59,7.16369723]
[1764021982867,0.71,139.64,139.59,7.16369723]
[1764021983651,14.9985299,139.64,139.58,10.34420247]
[1764021984171,0.71,139.63,139.58,10.34420247]
[1764021985057,7.87179192,139.63,139.58,10.34420247]
[1764021985373,0.71,139.63,139.58,17.47133692]
[1764021985873,0.71,139.63,139.58,28.25507795]
[1764021986173,0.71,139.63,139.58,35.3822124]
[1764021986472,0.71,139.63,139.59,7.12713445]
[1764021986867,0.71,139.63,139.6,7.16332378]
[1764021987757,17.9001707,139.67,139.6,7.16332378]
[1764021987758,0.71,139.68,139.61,16.308864]
[1764021987964,0.71,139.67,139.63,16.308864]
[1764021988180,0.71,139.67,139.62,3.18]
[1764021988488,0.71,139.67,139.61,16.308864]
[1764021988697,0.71,139.67,139.62,15.58115384]
[1764021988854,0.71,139.67,139.62,3.18]
[1764021989053,20.27090028,139.67,139.6,19.56436872]
[1764021989351,12.40115384,139.66,139.59,7.16376722]
[1764021989557,12.40115384,139.65,139.59,7.16376722]
[1764021989867,13.11115384,139.65,139.59,7.16376722]
[1764021990074,7.15981304,139.67,139.59,19.56492106]
[1764021990075,0.71,139.64,139.59,19.56492106]
[1764021990286,0.71,139.64,139.59,7.16376722]
[1764021990867,0.71,139.64,139.59,19.56492106]
[1764021991063,0.71,139.64,139.6,12.40115384]
[1764021991379,0.71,139.67,139.63,12.40115384]
[1764021991581,0.71,139.67,139.64,12.40115384]
[1764021991990,0.71,139.7,139.66,12.40115384]
[1764021992186,0.71,139.7,139.67,12.40115384]
[1764021992498,0.71,139.72,139.68,12.40115384]
[1764021992697,7.15576753,139.75,139.69,12.40115384]
[1764021992994,0.71,139.74,139.69,19.5595113]
[1764021993196,0.71,139.74,139.69,7.15835746]
[1764021993400,0.71,139.74,139.69,19.5595113]
[1764021994193,0.71,139.74,139.68,19.56029849]
[1764021994385,7.86615029,139.74,139.68,19.56029849]
[1764021994996,0.71,139.74,139.69,12.40115384]
[1764021995182,0.71,139.73,139.69,19.55956137]
[1764021995694,0.71,139.73,139.69,7.15840753]
[1764021996075,7.15526257,139.76,139.69,12.40115384]
[1764021996274,20.26641641,139.76,139.7,3.18]
[1764021996476,0.71,139.75,139.7,3.18]
[1764021996775,0.71,139.75,139.71,12.40115384]
[1764021996987,0.71,139.77,139.72,12.40115384]
[1764021997184,0.71,139.77,139.71,12.40115384]
[1764021997685,0.71,139.77,139.7,15.58115384]
[1764021997686,13.11115384,139.77,139.7,15.58115384]
[1764021998298,0.71,139.76,139.71,7.15768377]
[1764021999200,13.11115384,139.76,139.7,10.33807233]
[1764021999413,12.40115384,139.74,139.7,7.15807233]
[1764021999582,12.40115384,139.74,139.71,3.18]
[1764021999779,13.11115384,139.73,139.68,23.46796423]
[1764021999984,13.11115384,139.73,139.69,3.18]
[1764022000195,0.71,139.72,139.69,3.18]
[1764022001006,12.40115384,139.7,139.65,23.46944069]
[1764022001183,12.40115384,139.69,139.65,10.34057669]
[1764022001384,0.71,139.71,139.65,40.64362813]
[1764022001595,13.11115384,139.71,139.65,40.64362813]
[1764022001977,0.71,139.7,139.65,3.18]
[1764022002504,0.71,139.7,139.65,10.34070559]
[1764022002678,0.71,139.7,139.65,28.24260319]
[1764022003410,0.71,139.72,139.66,12.40115384]
[1764022004082,13.11115384,139.72,139.65,40.64375703]
[1764022004681,0.71,139.72,139.66,15.58115384]
[1764022005508,0.71,139.72,139.67,12.40115384]
[1764022006419,0.71,139.72,139.68,25.05727376]
[1764022006614,0.71,139.74,139.69,3.18]
[1764022007000,0.71,139.74,139.69,15.58115384]
[1764022007515,12.40115384,139.75,139.69,15.58115384]
[1764022007516,0.71,139.77,139.71,12.40115384]
[1764022007689,0.71,139.76,139.7,12.40115384]
[1764022007894,0.71,139.76,139.71,3.18]
[1764022008308,0.71,139.76,139.71,15.58115384]
[1764022008509,0.71,139.76,139.72,19.55832532]
[1764022009824,0.71,139.76,139.72,7.15717148]
[1764022010125,13.11115384,139.76,139.72,3.18]
[1764022010529,13.11115384,139.76,139.72,10.33717074]
[1764022010824,0.66,139.76,139.72,10.33717074]
[1764022011011,0.66,139.76,139.72,28.23009945]
[1764022011205,0.66,139.76,139.72,10.33717074]
[1764022011517,0.66,139.76,139.72,40.63125329]
[1764022012921,0.66,139.76,139.72,22.73832458]
[1764022014120,0.66,139.76,139.72,10.33717074]
[1764022014332,0.66,139.76,139.72,22.73832458]
[1764022014508,0.66,139.76,139.72,40.63125329]
[1764022015630,0.66,139.76,139.72,10.33717074]
[1764022016203,8.80994492,139.81,139.72,28.23009945]
[1764022016402,0.7,139.81,139.79,12.40115384]
[1764022016634,0.7,139.81,139.79,3.18]
[1764022016936,0.7,139.81,139.77,3.18]
[1764022016937,13.10115384,139.81,139.77,3.18]
[1764022017120,12.40115384,139.8,139.75,26.64440824]
[1764022017322,0.7,139.8,139.75,26.64440824]
[1764022017509,0.7,139.79,139.75,26.64440824]
[1764022017911,0.7,139.79,139.75,39.04556208]
[1764022018141,0.7,139.79,139.75,26.64440824]
[1764022018312,8.80994492,139.75,139.66,7.16024631]
[1764022018511,0.7,139.79,139.74,12.40115384]
[1764022018812,0.7,139.79,139.75,19.55654028]
[1764022019321,0.7,139.79,139.76,12.40115384]
[1764022019829,1e-08,139.84,139.79,0.7]
[1764022020137,1e-08,139.84,139.82,12.40115384]
[1764022020350,1e-08,139.84,139.83,15.60115384]
[1764022020836,1e-08,139.84,139.83,22.75269499]
[1764022021447,1e-08,139.84,139.83,89.06155899]
[1764022021660,1e-08,139.84,139.79,17.88377211]
[1764022021865,0.70000001,139.84,139.83,12.40115384]
[1764022022058,0.70000001,139.84,139.83,15.60115384]
[1764022022240,1e-08,139.84,139.83,15.60115384]
[1764022022748,0.70000001,139.84,139.83,12.40115384]
[1764022022946,0.70000001,139.84,139.83,15.60115384]
[1764022023169,1.93593088,139.93,139.86,16.308864]
[1764022023464,1e-08,139.93,139.92,28.71001784]
[1764022023763,1.3,140.0,139.96,16.308864]
[1764022024264,3.22,140.01,139.99,12.40115384]
[1764022024433,7.14036679,140.05,139.94,16.308864]
[1764022024641,24.99113437,140.05,139.98,12.29115384]
[1764022024841,15.95107306,140.04,139.97,12.40115384]
[1764022025067,0.1,139.98,139.97,7.14420874]
[1764022026254,0.1,139.98,139.97,19.54536258]
[1764022026858,0.1,139.98,139.97,7.14420874]
[1764022027344,0.1,139.98,139.97,19.54536258]
[1764022029258,0.1,139.98,139.97,20.21536258]
[1764022029454,0.1,139.98,139.97,19.54536258]
[1764022029875,0.1,139.98,139.97,20.21536258]
[1764022030370,0.7,140.04,140.0,16.308864]
[1764022030559,0.7,140.07,140.03,12.40115384]
[1764022030757,21.91109876,140.09,140.02,12.40115384]
[1764022031072,3.92,140.08,140.03,7.14132685]
[1764022031247,16.32115384,140.08,140.02,7.14178669]
[1764022031446,0.7,140.07,140.02,19.54294053]
[1764022032064,0.7,140.07,140.03,12.40115384]
[1764022032283,0.7,140.07,140.04,12.40115384]
[1764022032476,12.40115384,140.12,140.05,12.40115384]
[1764022032649,0.7,140.09,140.06,12.40115384]
[1764022032848,0.7,140.09,140.04,12.40115384]
[1764022033078,0.7,140.09,140.05,7.14030703]
[1764022033369,12.40115384,140.07,140.03,23.44981412]
[1764022033576,12.40115384,140.05,140.02,16.308864]
[1764022033951,13.10115384,140.05,140.02,16.308864]
[1764022034150,0.7,140.1,140.03,0.67]
[1764022034474,12.40115384,140.06,140.03,16.308864]
[1764022034849,0.7,140.05,140.03,16.308864]
[1764022035049,12.40115384,140.06,140.03,23.4498832]
[1764022035050,0.7,140.06,140.03,23.4498832]
[1764022035675,13.10115384,140.09,140.03,36.52103704]
[1764022035854,13.10115384,140.09,140.03,54.37435418]
[1764022036174,12.40115384,140.08,140.03,41.97320034]
[1764022036357,0.7,140.09,140.03,41.97320034]
[1764022036671,13.10115384,140.08,140.03,23.4498832]
[1764022037061,13.10115384,140.07,140.03,23.4498832]
[1764022037258,12.40115384,140.06,140.03,16.308864]
[1764022037462,13.10115384,140.06,140.0,24.12126512]
[1764022037759,12.40115384,140.05,140.01,16.308864]
[1764022037964,13.10115384,140.05,140.0,7.14240112]
[1764022038363,16.32115384,140.07,140.01,0.67]
[1764022038561,12.40115384,140.05,140.0,16.308864]
[1764022039072,12.40115384,140.09,140.05,7.14030703]
[1764022039273,12.40115384,140.08,140.04,16.308864]
[1764022039451,12.40115384,140.08,140.04,23.44926986]
[1764022039452,13.10115384,140.08,140.04,23.44926986]
[1764022039651,0.7,140.08,140.04,23.44926986]
[1764022039870,0.7,140.08,140.04,7.14040586]
[1764022040074,0.7,140.08,140.04,7.81040586]
[1764022041158,0.7,140.08,140.04,25.66244813]
[1764022041378,0.7,140.08,140.04,24.99244813]
[1764022041678,13.10115384,140.08,140.04,24.99244813]
[1764022042372,0.7,140.08,140.04,24.99244813]
[1764022042780,0.7,140.07,140.04,24.99244813]
[1764022043148,0.7,140.07,140.03,7.14132685]
[1764022043149,13.10115384,140.07,140.03,7.14132685]
[1764022043349,12.40115384,140.06,140.03,7.14132685]
[1764022043556,13.10115384,140.06,140.02,7.14182365]
[1764022043778,13.10115384,140.05,140.02,7.14182365]
[1764022043977,0.7,140.08,140.02,7.14182365]
[1764022044281,13.10115384,140.07,140.02,7.14182365]
[1764022044453,16.30115384,140.07,140.02,7.14182365]
[1764022044654,0.7,140.06,140.02,7.14182365]
[1764022045159,13.10115384,140.06,140.02,7.14182365]
[1764022046362,15.60115384,140.06,140.02,7.14182365]
[1764022046557,8.80994492,140.14,140.03,1.40413268]
[1764022046773,0.7,140.08,140.03,0.69]
[1764022046971,16.30115384,140.08,140.03,0.69]
[1764022047371,16.30115384,140.08,140.04,7.1408169]
[1764022048191,13.10115384,140.08,140.04,7.1408169]
[1764022048380,16.30115384,140.08,140.04,7.1408169]
[1764022048580,3.9,140.08,140.04,7.1408169]
[1764022048881,3.9,140.08,140.02,7.14138725]
[1764022048882,7.78054517,140.07,140.02,7.14138725]
[1764022049073,7.08054517,140.06,140.02,7.14138725]
[1764022049268,7.78054517,140.06,140.02,7.14138725]
[1764022049785,7.78054517,140.06,140.02,7.83138725]
[1764022049965,7.78054517,140.06,140.02,7.14138725]
[1764022050284,0.7,140.06,140.02,7.14138725]
[1764022050473,7.08054517,140.04,140.0,7.14248993]
[1764022050877,0.7,140.03,140.0,7.14248993]
[1764022051189,3.9,140.03,140.0,7.14248993]
[1764022051388,3.9,140.03,139.99,7.14336738]
[1764022051571,3.9,140.03,139.99,25.69178583]
[1764022051970,0.7,140.03,139.99,25.69178583]
[1764022052591,0.7,140.07,140.01,7.08054517]
[1764022052891,7.08054517,140.05,140.0,0.69]
[1764022053092,3.9,140.06,140.0,0.69]
[1764022053287,3.2,140.07,140.01,7.08054517]
[1764022053489,10.28054517,140.07,140.02,7.14183688]
[1764022053671,3.9,140.07,140.02,7.14183688]
[1764022053874,0.7,140.06,140.02,7.14183688]
[1764022054061,7.78054517,140.06,140.02,7.14183688]
[1764022054274,0.7,140.06,140.02,7.83183688]
[1764022054705,10.28054517,140.07,140.02,7.83183688]
[1764022054993,0.7,140.06,140.02,7.83183688]
[1764022055184,7.78054517,140.06,140.02,7.83183688]
[1764022057206,0.7,140.06,140.02,7.83183688]
[1764022057581,7.08054517,140.05,140.02,7.14183688]
[1764022057775,7.08054517,140.05,140.01,7.14234697]
[1764022057982,7.78054517,140.06,140.01,7.14234697]
[1764022058194,7.78054517,140.06,140.02,0.69]
[1764022058394,7.78054517,140.06,140.01,25.6882144]
[1764022058592,0.7,140.06,140.02,0.69]
[1764022058912,7.78054517,140.06,140.01,25.6882144]
[1764022059208,7.08054517,140.05,140.01,25.6882144]
[1764022059413,7.08054517,140.04,140.01,7.14234697]
[1764022059582,7.78054517,140.04,140.01,7.14234697]
[1764022059996,7.78054517,140.04,140.0,7.14285714]
[1764022060202,7.78054517,140.04,140.0,7.83285714]
[1764022061006,0.7,140.04,140.0,7.83285714]
[1764022061684,7.78054517,140.04,140.0,25.68999999]
[1764022062010,0.7,140.04,140.0,25.68999999]
[1764022062478,7.08054517,140.01,139.97,7.14427056]
[1764022062681,7.08054517,139.99,139.95,0.69]
[1764022062908,7.08054517,140.0,139.95,0.69]
[1764022063103,7.08054517,140.0,139.95,7.83539911]
[1764022063306,7.78054517,140.0,139.95,7.83539911]
[1764022063689,0.7,140.0,139.96,0.69]
[1764022064006,10.98054517,140.0,139.96,0.69]
[1764022065098,0.7,139.99,139.95,25.00892179]
[1764022065303,0.7,139.99,139.95,25.69892179]
[1764022065705,7.08054517,139.97,139.91,21.99672555]
[1764022065888,7.08054517,139.95,139.9,0.69]
[1764022066096,0.7,139.98,139.9,32.78841507]
[1764022066412,0.7,139.98,139.91,7.08054517]
[1764022066413,3.2,139.97,139.91,7.08054517]
[1764022066611,3.2,139.98,139.92,7.77054517]
[1764022066817,10.98054517,140.0,139.93,23.38940917]
[1764022067008,7.08054517,139.97,139.92,0.69]
[1764022067328,3.9,140.0,139.89,0.69]
[1764022067329,0.7,139.96,139.89,0.69]
[1764022067610,10.28054517,139.95,139.9,7.14796283]
[1764022067993,7.77054517,139.94,139.9,7.14796283]
[1764022069110,7.77054517,139.95,139.9,7.80796283]
[1764022069303,10.97054517,139.95,139.91,0.66]
[1764022069685,10.97054517,139.95,139.89,172.14054517]
[1764022069890,10.97054517,139.95,139.9,7.14789226]
[1764022070318,0.69,139.94,139.9,25.67779933]
[1764022070816,7.08054517,139.93,139.9,7.14789226]
[1764022071015,7.08054517,139.93,139.9,164.4]
[1764022071203,0.69,139.92,139.9,164.4]
[1764022071399,7.08054517,139.91,139.86,18.53441815]
[1764022071714,7.77054517,139.92,139.87,7.80907994]
[1764022071916,0.69,139.92,139.87,25.68281984]
[1764022072110,0.69,139.92,139.88,0.66]
[1764022072314,3.2,139.93,139.88,0.66]
[1764022072514,0.69,139.92,139.88,0.66]
[1764022072819,0.69,139.92,139.87,25.02281984]
[1764022073004,7.77054517,139.92,139.87,25.02281984]
[1764022073200,7.77054517,139.92,139.88,0.66]
[1764022073815,7.76054517,139.95,139.88,7.74054517]
[1764022074016,0.68,139.94,139.88,7.74054517]
[1764022074195,0.68,139.94,139.89,0.66]
[1764022074399,7.76054517,139.94,139.89,0.66]
[1764022074800,0.68,139.93,139.87,32.76336501]
[1764022075213,0.68,139.93,139.88,0.66]
[1764022077006,0.68,139.93,139.89,25.0196583]
[1764022077201,0.68,139.96,139.9,0.71479628]
[1764022077406,0.68,139.95,139.89,98.46020347]
[1764022077607,7.76054517,139.95,139.89,91.3796583]
[1764022077803,7.76054517,139.95,139.89,28.8796583]
[1764022078131,7.76054517,139.94,139.89,25.0196583]
[1764022078514,0.68,139.93,139.89,25.0196583]
[1764022078913,0.68,139.93,139.89,25.6796583]
[1764022079309,0.68,139.93,139.89,25.0196583]
[1764022079516,7.76054517,139.93,139.89,25.0196583]
[1764022079712,7.08054517,139.92,139.89,7.1484738]
[1764022079915,7.76054517,139.92,139.89,7.1484738]
[1764022080107,0.68,139.91,139.89,7.1484738]
[1764022080429,0.68,139.91,139.86,0.66]
[1764022080730,0.68,139.93,139.87,0.66]
[1764022080935,0.68,139.95,139.89,23.38940917]
[1764022081419,7.76054517,139.95,139.89,16.968864]
[1764022081932,7.08054517,139.93,139.89,16.308864]
[1764022082130,0.68,139.94,139.88,90.72144695]
[1764022082323,0.68,139.93,139.88,87.52144695]
[1764022082830,0.68,139.93,139.89,0.66]
[1764022083034,0.68,139.93,139.9,25.0178699]
[1764022083414,0.68,139.95,139.9,25.6778699]
[1764022083611,0.68,139.94,139.9,25.6778699]
[1764022083812,3.66029297,139.94,139.9,25.0178699]
[1764022084025,0.68,139.94,139.9,25.6778699]
[1764022084409,0.68,139.94,139.9,25.0178699]
[1764022084926,1.99999999,140.05,139.9,25.0178699]
[1764022084927,25.00029732,140.0,139.9,189.4178699]
[1764022085125,3.66029297,139.96,139.91,0.66]
[1764022085329,3.66029297,139.96,139.91,165.06]
[1764022085527,2.98029297,139.94,139.91,164.4]
[1764022085916,3.2,139.99,139.91,164.4]
[1764022085917,3.66029297,139.93,139.91,164.4]
[1764022086122,0.68,139.93,139.91,164.4]
[1764022086327,3.66029297,139.92,139.91,164.4]
[1764022086517,3.66029297,139.92,139.91,62.5]
[1764022087830,3.66029297,139.92,139.84,40.68944015]
[1764022087831,14.00723407,139.92,139.84,7.3509617]
[1764022088033,2.98029297,139.9,139.84,7.3509617]
[1764022088242,2.98029297,139.89,139.84,25.22853607]
[1764022088611,3.66029297,139.88,139.84,8.0109617]
[1764022088932,3.66029297,139.88,139.84,7.3509617]
[1764022089132,10.12931327,139.88,139.84,7.3509617]
[1764022089313,2.98029297,139.86,139.84,0.2]
[1764022089713,3.66029297,139.86,139.84,0.2]
[1764022089908,2.98029297,139.86,139.84,0.2]
[1764022090221,0.68,139.85,139.84,0.2]
[1764022090422,3.66029297,139.85,139.84,0.2]
[1764022090744,0.68,139.85,139.84,0.2]
[1764022091329,10.81081138,139.85,139.84,0.2]
[1764022091534,3.66029297,139.85,139.84,0.2]
[1764022091716,0.68,139.85,139.84,0.2]
[1764022091925,3.66029297,139.85,139.84,0.2]
[1764022092120,10.81081138,139.85,139.84,0.2]
[1764022092524,14.93605513,139.85,139.84,0.2]
[1764022093033,25.41440071,139.92,139.84,0.2]
[1764022093034,0.68,139.89,139.84,0.2]
[1764022093239,7.78553672,139.89,139.84,7.35101399]
[1764022093736,0.68,139.88,139.84,7.35101399]
[1764022095035,14.93453743,139.88,139.84,7.35101399]
[1764022095213,14.93453743,139.88,139.84,0.2]
[1764022095415,0.68,139.87,139.84,0.2]
[1764022096127,0.68,139.87,139.84,7.35102322]
[1764022096321,0.68,139.87,139.84,0.2]
[1764022096637,0.68,139.87,139.84,7.3509657]
[1764022096816,3.88,139.89,139.84,14.45650242]
[1764022097020,0.68,139.88,139.84,7.3509657]
[1764022097415,7.78553672,139.88,139.84,7.3509657]
[1764022097618,7.10553672,139.87,139.84,0.2]
[1764022097922,7.78553672,139.87,139.84,0.2]
[1764022098123,7.10553672,139.85,139.84,0.2]
[1764022098319,17.45605513,139.85,139.84,0.2]
[1764022098635,18.13605513,139.85,139.84,0.2]
[1764022099612,87.68042486,139.85,139.8,0.2]
[1764022099814,7.10553672,139.81,139.8,0.2]
[1764022100213,10.98553672,139.81,139.8,0.2]
[1764022100440,18.13810091,139.81,139.8,0.2]
[1764022101633,26.94804583,139.81,139.8,0.2]
[1764022104519,18.13810091,139.81,139.8,0.2]
[1764022105149,14.93810091,139.81,139.8,0.2]
[1764022105450,18.13810091,139.81,139.8,0.2]
[1764022106545,14.93810091,139.81,139.8,0.2]
[1764022106740,18.13810091,139.81,139.8,0.2]
[1764022110430,11.03256419,139.81,139.8,0.2]
[1764022110626,23.41413657,139.81,139.8,0.2]
[1764022111548,12.38157238,139.81,139.8,0.2]
[1764022111748,15.58157238,139.81,139.8,0.2]
[1764022114954,3.73856117,139.95,139.84,16.308864]
[1764022115128,3.73856117,139.95,139.81,50.0]
[1764022115129,12.38157238,139.9,139.83,3.2]
[1764022115331,12.38157238,139.9,139.83,26.66035244]
[1764022115332,12.38157238,139.87,139.83,26.66035244]
[1764022115631,3.2,139.87,139.82,7.15196754]
[1764022115848,16.25157238,139.87,139.82,7.15196754]
[1764022117263,23.40114523,139.87,139.81,7.15256419]
[1764022117555,12.38157238,139.86,139.81,7.15256419]
[1764022117741,13.05157238,139.86,139.81,7.15256419]
[1764022118060,12.38157238,139.85,139.81,7.15256419]
[1764022118261,13.05157238,139.85,139.81,7.15256419]
[1764022118554,15.58157238,139.86,139.81,7.15256419]
[1764022118764,13.05157238,139.85,139.8,36.04341159]
[1764022119838,12.38157238,139.83,139.8,69.85297521]
[1764022120244,13.05157238,139.83,139.8,62.7]
[1764022120433,0.67,139.82,139.8,0.2]
[1764022120635,16.25157238,139.83,139.8,0.2]
[1764022121156,16.25157238,139.83,139.8,7.35306288]
[1764022121540,3.87,139.83,139.8,7.35306288]
[1764022123260,0.67,139.82,139.8,0.2]
[1764022123961,13.05157238,139.82,139.8,0.2]
[1764022124148,0.67,139.82,139.8,0.2]
[1764022124349,16.25157238,139.84,139.8,0.2]
[1764022124543,0.67,139.83,139.8,0.2]
[1764022124850,0.67,139.83,139.8,7.35301267]
[1764022125046,15.58157238,139.84,139.8,7.35301267]
[1764022125238,16.25157238,139.84,139.8,7.35301267]
[1764022125438,16.25157238,139.84,139.8,69.85301267]
[1764022125656,0.67,139.83,139.8,69.85301267]
[1764022125840,0.67,139.86,139.8,82.23458505]
[1764022126153,15.58157238,139.85,139.8,87.73570222]